{"text_format":"1","workbook":"xlsx","n_sheets":4,"sheets":["HSE Data consolidation","Tables","User preferences","Suppliers List"],"not_rendered":{"charts":0,"images":5,"macros":1,"external_links":0,"defined_names":203,"comments":0,"pivot_tables":0},"unopened":[],"bounds":{"document_bytes":16777216,"sheet_cells":100000,"rows_first":2000,"rows_last":500,"rows_between":2000,"halvings":0,"cell_chars":16384,"cell_head_chars":4096},"cells_cut":0,"cells_raw":0,"read":"whole","date_system":"1900"}

{"sheet":"HSE Data consolidation","index":0,"n_rows":66,"n_cols":32,"rows_kept":66,"cut":false,"hidden":false,"merged":[[1,5,1,7],[4,3,4,4],[2,5,3,16],[5,3,5,4],[51,3,51,10],[15,4,15,17],[16,4,16,17],[17,4,17,17],[18,4,18,17],[19,4,19,17],[20,4,20,17],[26,9,26,11],[27,9,27,11],[28,9,28,11],[49,3,49,4],[50,3,50,4],[61,3,61,4],[58,3,58,10],[59,3,59,10],[60,3,60,10],[52,3,52,10],[53,3,53,10],[54,3,54,10],[55,3,55,10],[56,3,56,10],[57,3,57,10]]}
[null,null,null,null,null,null,null,null,null,null,null,null,null,null,null,null,null,null,null,null,null,null,null,null,null,null,null,null,null,null,null,"Created by Layth Alattar"]
[null,null,null,null,null,"Warning and Error messages"]
[]
[]
[null,null,null,"SUPPLIER SAFETY REPORTING TEMPLATE"]
[null,null,null,"GTF-21-0004 rev 1"]
[null,null,null,"Company Name:"]
[null,null,null,"SAP ID :"]
[null,null,null,"Date:",{"$f":"TODAY()","v":"2026-02-25"}]
[null,null,null,"File Name",{"$f":"File_name_4","v":"_Jan-2026"}]
[]
[]
[null,null,null,"Definitions:"]
[]
[null,null,null,"Manhours","Number of employees x the number of hours at work for each for the given period"]
[null,null,null,"Recordables","Any work related incident that results in recordable injury as defined by OSHA standards"]
[null,null,null,"Fatality","Any work related incident that results in loss of life"]
[null,null,null,"Lost Time Injury (LTI)","Any safety related incident that results in lost work time as defined by OSHA standards"]
[null,null,null,"Serious Incidents and Fatality (SIF)","Any serious injury, illness, environmental hazard or fatality at work with severity rating of substantial and catastrophic per our severity risk matrix. See training material for more details."]
[null,null,null,"Leadership visit","A visit to office or operational site by Senior Execs, Sr. Vice presidents, Vice Presidents, Directors and their direct reports where the agenda includes safety observations and/or discussions to reinforce safety culture, behaviors and engagement.  Visit must be documented."]
[null,null,null,"Management Walk-thru","A visit to operational site by Managers with focus on HSE procedures and safe working practices.  Visit to include engagement and a walk-thru to make observations, provide feedback and to reinforce positive HSE behaviors/commitment.  Should include follow-up on any concerns or deficiencies observed.  Visit must be documented."]
[]
[]
[]
[null,null,null,"Item","Description","2026-01-01"]
[null,null,null,"Exposure Values","Manhours",null,null,null,"Legend"]
[null,null,null,"Lagging Indicators","Number of Total Recordable Cases / Incidents (TRC / TRI)",null,null,null,null,"Information to be input"]
[null,null,null,"Lagging Indicators","Number of fatalities",null,null,null,null,"Information to be \"optionally\" input"]
[null,null,null,"Lagging Indicators","Number of Lost Time Injuries (LTI)",null,null,null,null,"Automatic calculation"]
[null,null,null,"Exposure Values","Number of SIF"]
[null,null,null,"Categorize SIF # 1 from drop down & identify controls enlisted.",null,null,null,{"$f":"IF(Categorize_SIF_1_Jan=\"0 – N/A\",\"\",(IF(Categorize_SIF_1_Jan=\"1 – PPE\",1, IF(Categorize_SIF_1_Jan=\"2 – Administrative, Organizational\",2, IF(Categorize_SIF_1_Jan=\"3 –  Engineering Control\",3, IF(Categorize_SIF_1_Jan=\"4 –  Substitute\",4, IF(Categorize_SIF_1_Jan=\"5 – Eliminate\",5,\"\")))))))","v":""}]
[null,null,null,"Categorize SIF # 2 from drop down & identify controls enlisted.",null,null,null,{"$f":"IF(Categorize_SIF_2_Jan=\"0 – N/A\",\"\",(IF(Categorize_SIF_2_Jan=\"1 – PPE\",1, IF(Categorize_SIF_2_Jan=\"2 – Administrative, Organizational\",2, IF(Categorize_SIF_2_Jan=\"3 –  Engineering Control\",3, IF(Categorize_SIF_2_Jan=\"4 –  Substitute\",4, IF(Categorize_SIF_2_Jan=\"5 – Eliminate\",5,\"\")))))))","v":""}]
[null,null,null,"Categorize SIF # 3 from drop down & identify controls enlisted.",null,null,null,{"$f":"IF(Categorize_SIF_3_Jan=\"0 – N/A\",\"\",(IF(Categorize_SIF_3_Jan=\"1 – PPE\",1, IF(Categorize_SIF_3_Jan=\"2 – Administrative, Organizational\",2, IF(Categorize_SIF_3_Jan=\"3 –  Engineering Control\",3, IF(Categorize_SIF_3_Jan=\"4 –  Substitute\",4, IF(Categorize_SIF_3_Jan=\"5 – Eliminate\",5,\"\")))))))","v":""}]
[null,null,null,"Categorize SIF # 4 from drop down & identify controls enlisted.",null,null,null,{"$f":"IF(Categorize_SIF_4_Jan=\"0 – N/A\",\"\",(IF(Categorize_SIF_4_Jan=\"1 – PPE\",1, IF(Categorize_SIF_4_Jan=\"2 – Administrative, Organizational\",2, IF(Categorize_SIF_4_Jan=\"3 –  Engineering Control\",3, IF(Categorize_SIF_4_Jan=\"4 –  Substitute\",4, IF(Categorize_SIF_4_Jan=\"5 – Eliminate\",5,\"\")))))))","v":""}]
[null,null,null,"Leading Indicators","Number of Leadership Visits"]
[null,null,null,"Leading Indicators","Number of Management Walkthroughs"]
[null,null,null,"Exposure Values","Cumulated Manhours",{"$f":"SUM($F26:F26)","v":0}]
[null,null,null,"Lagging Indicators","Cumulated Number of Total Recordable Cases / Incidents",{"$f":"SUM($F27:F27)","v":0}]
[null,null,null,"Lagging Indicators","Cumulated Number of Lost Time Injuries",{"$f":"SUM($F29:F29)","v":0}]
[null,null,null,"Leading Indicators","Cumulated Number of Leadership Visits",{"$f":"SUM($F35:F35)","v":0}]
[null,null,null,"Leading Indicators","Cumulated Number of Management Walkthroughs",{"$f":"SUM($F36:F36)","v":0}]
[null,null,null," KPIs","SIF Prevention Rate",{"$f":"+AVERAGE(H31:H34)","v":{"$error":"#DIV/0!"}}]
[null,null,null," KPIs","TRCF / TRIR",{"$f":"IF(F$26<>0,(F38*200000/F$37),\"No manhours this month\")","v":"No manhours this month"}]
[null,null,null," KPIs","Lost Time Injury Frequency / Lost Time Injury Rate",{"$f":"IF(F$26<>0,(F39*200000/F$37),\"No manhours this month\")","v":"No manhours this month"}]
[null,null,null," KPIs","Leadership Visit Frequency",{"$f":"IF(F$26<>0,(F40*200000/F$37),\"No manhours this month\")","v":"No manhours this month"}]
[null,null,null," KPIs","Management Walkthrough Frequency",{"$f":"IF(F$26<>0,(F41*200000/F$37),\"No manhours this month\")","v":"No manhours this month"}]
[]
[]
[]
[null,null,null,"SIF Commentary"]
[null,null,null,"Input brief description for each SIF"]
[null,null,null,"Example: SIF # 1 resulted from the dropping of a 3,000 lb valve forging while moving to a machining cell.  No injury occurred."]
[]
[]
[]
[]
[]
[]
[]
[]
[]
[null,null,null,"Lost Time Accident Detail"]
[null,null,null,"Lagging Indicators","Date of Incident"]
[null,null,null,"Lagging Indicators","Event is Accident or Near Miss?"]
[null,null,null,"Lagging Indicators","Accident Resulted in Harm to People (Yes/No)"]
[null,null,null,"Lagging Indicators","Severity of Accident (FAT, MTI, LTI, Serious LTI and/or Fatality, NA)"]

{"sheet":"Tables","index":1,"n_rows":436,"n_cols":13,"rows_kept":436,"cut":false,"hidden":true,"merged":[[199,0,199,2],[4,0,4,2],[28,0,28,2],[42,0,42,4],[63,0,63,2],[69,0,69,2],[64,0,64,2],[36,0,36,2],[57,0,57,4],[31,0,31,2],[34,0,34,2],[109,0,109,2],[124,0,124,2],[0,0,0,2],[425,0,425,2],[50,0,50,4],[305,0,305,2],[317,0,317,2],[329,0,329,2],[341,0,341,2],[353,0,353,2],[365,0,365,2],[377,0,377,2],[389,0,389,2],[401,0,401,2],[413,0,413,2],[276,0,276,2],[292,0,292,2],[293,0,293,2],[295,0,295,2],[79,0,79,2],[94,0,94,2],[214,0,214,2],[139,0,139,2],[154,0,154,2],[229,0,229,2],[269,0,269,1],[252,0,252,2],[270,0,270,1],[266,0,266,1],[268,0,268,1],[267,0,267,1],[261,0,261,2],[169,0,169,2],[184,0,184,2]]}
["Created by Layth Alattar\n(layth.alattar@technipfmc.com)",null,null,"Current HSE Type (HSE_Type_Selection)"]
[]
["All Cells in NCR sheet",null,null,null,null,null,null,null,"HSE_StartEmptyCellResutls"]
[null,null,null,null,null,"HSE_NoOfEmptyCells",null,null,"Cell values","Cell or table  name",null,"The old cell names when we were reporting for the 12 months format"]
["HSE_EmptyCellsCheckList",null,null,"Selected Cell names","Cell tittle","Number of empty cells",null,null,null,"HSE_StartEmptyCellResutls",null,"HSE_SupplierName","The Supplier Name"]
["Start",null,null,"HSE_SupplierName","The Supplier Name",10,null,null,null,null,null,"HSE_FormDate","The date of the form"]
[null,null,null,"HSE_SupplierSAPNo","SAP ID",null,null,null,null,null,null,"HSE_SupplierSAPNo","SAP ID"]
["HSE_EmptyCellsCheckList",null,null,"Exposure_Values_ManH_Jan","Manhours for Jan",null,null,null,null,"HSE_EmptyCellResutlsTable",null,"Exposure_Values_ManH_Jan","Manhours for Jan"]
[null,null,null,"Lagging_Indic_Total_Jan","Total Recordable Cases / Incidents (TRC / TRI) for Jan",null,null,null,null,null,null,"Lagging_Indic_Total_Jan","Total Recordable Cases / Incidents (TRC / TRI) for Jan"]
[null,null,null,"Lagging_Indic_Fatal_Jan","Number of fatalities for Jan",null,null,null,null,null,null,"Lagging_Indic_Fatal_Jan","Number of fatalities for Jan"]
[null,null,null,"Lagging_Indic_LTI_Jan","Number of Lost Time Injuries (LTI) for Jan",null,null,null,null,null,null,"Lagging_Indic_LTI_Jan","Number of Lost Time Injuries (LTI) for Jan"]
[null,null,null,"Exposure_Values_SIF_Jan","Number of SIF for Jan",null,null,null,null,null,null,"Exposure_Values_SIF_Jan","Number of SIF for Jan"]
[null,null,null,"Categorize_SIF_1_Jan","Categorize SIF # 1 from drop down & identify controls enlisted for Jan",null,null,null,null,null,null,"Categorize_SIF_1_Jan","Categorize SIF # 1 from drop down & identify controls enlisted for Jan"]
[null,null,null,"Categorize_SIF_2_Jan","Categorize SIF # 2 from drop down & identify controls enlisted for Jan",null,null,null,null,null,null,"Categorize_SIF_2_Jan","Categorize SIF # 2 from drop down & identify controls enlisted for Jan"]
[null,null,null,"Categorize_SIF_3_Jan","Categorize SIF # 3 from drop down & identify controls enlisted for Jan",null,null,null,null,null,null,"Categorize_SIF_3_Jan","Categorize SIF # 3 from drop down & identify controls enlisted for Jan"]
[null,null,null,"Categorize_SIF_4_Jan","Categorize SIF # 4 from drop down & identify controls enlisted for Jan",null,null,null,null,null,null,"Categorize_SIF_4_Jan","Categorize SIF # 4 from drop down & identify controls enlisted for Jan"]
[null,null,null,"Leading_Indic_Visit_Jan","Number of Leadership Visits for Jan",null,null,null,null,null,null,"Leading_Indic_Visit_Jan","Number of Leadership Visits for Jan"]
["end",null,null,"Leading_Indic_Walk_Jan","Number of Management Walkthroughs for Jan",null,null,null,null,null,null,"Leading_Indic_Walk_Jan","Number of Management Walkthroughs for Jan"]
[]
[]
[]
[]
[]
[]
[]
[]
[]
[]
["Warning Text"]
[null,null,null,"This file is a \"Draft\", and cannot be sent to TechnipFMC. Please fill in all the required fields/cells"]
[]
["Warning Text 2"]
[null,null,null,"This file is a \"Draft\", and cannot be sent to TechnipFMC. Please fill in all the required fields/cells and enter a valid date."]
[]
["Warning Text 3"]
[null,null,null,"This file is a \"Draft\", and cannot be sent to TechnipFMC. Please enter a valid date."]
["Approval Text"]
[null,null,null,"All the required fields/cells are filled in. The file can be sent to TechnipFMC by clicking the \"Send this Form\" button, or \"Create CSV file\"."]
[]
[]
[]
[]
["Control variables 1"]
[null,null,null,"Name of the control vailable","Value (Enable=0 or Disable=1), default \"Disable=1\"",null,null,null,"NCR_RequiredbyECN"]
[null,null,null,"SavingEnableDisable",0,null,null,null,"NCR_WhoDiscoveredDefect"]
[null,null,null,null,null,null,null,null,"NCR_Serial_Batch_Number"]
[null,null,null,null,null,null,null,null,"NCR_MainDefectCode"]
[null,null,null,null,null,null,null,null,"NCR_SubDefectCode"]
[null,null,null,null,null,null,null,null,"NCR_MainCauseCode"]
[null,null,null,null,null,null,null,null,"NCR_SubCauseCode"]
["Control variables 2"]
[null,null,null,"Name of the control vailable","Value (Use Date from front page=0 or Use the Network/PC date=1)"]
[null,null,null,"DateUsageOptions",1]
[]
[]
[]
[]
["Control variables 3"]
[null,null,null,"Name of the control vailable","many integer value, default vale =3"]
[null,null,null,"NumBackwardMonth",3]
[]
[]
[null,null,null,null,null,null,null,null,"StartEmptyCellResutls_AllMonths",null,null,"The old cell names when we were reporting for the 12 months format"]
["HSE_xxxxx",null,null,"Selected Cell names","Cell tittle","Number of empty cells_AllMonths",null,null,null,"HSE_StartEmptyCellResutls",null,"The Supplier Name"]
["EmptyCellsCheckList_Jan",null,null,"HSE_SupplierName","The Supplier Name",0,null,null,null,null,null,"The date of the form"]
[null,null,null,"HSE_FormDate","The date of the form",null,null,null,null,null,null,"SAP ID"]
[null,null,null,"HSE_SupplierSAPNo","SAP ID",null,null,null,null,null,null,"Manhours for Jan"]
[null,null,null,"Exposure_Values_ManH_Jan","Manhours for Jan",null,null,null,null,null,null,"Total Recordable Cases / Incidents (TRC / TRI) for Jan"]
[null,null,null,"Lagging_Indic_Total_Jan","Total Recordable Cases / Incidents (TRC / TRI)",null,null,null,null,null,null,"Number of fatalities for Jan"]
[null,null,null,"Lagging_Indic_Fatal_Jan","Number of fatalities",null,null,null,null,null,null,"Number of Lost Time Injuries (LTI) for Jan"]
[null,null,null,"Lagging_Indic_LTI_Jan","Number of Lost Time Injuries (LTI)",null,null,null,null,null,null,"Number of SIF for Jan"]
[null,null,null,"Exposure_Values_SIF_Jan","Number of SIF",null,null,null,null,null,null,"Categorize SIF # 1 from drop down & identify controls enlisted for Jan"]
[null,null,null,"Categorize_SIF_1_Jan","Categorize SIF # 1 from drop down & identify controls enlisted",null,null,null,null,null,null,"Categorize SIF # 2 from drop down & identify controls enlisted for Jan"]
[null,null,null,"Categorize_SIF_2_Jan","Categorize SIF # 2 from drop down & identify controls enlisted",null,null,null,null,null,null,"Categorize SIF # 3 from drop down & identify controls enlisted for Jan"]
[null,null,null,"Categorize_SIF_3_Jan","Categorize SIF # 3 from drop down & identify controls enlisted",null,null,null,null,null,null,"Categorize SIF # 4 from drop down & identify controls enlisted for Jan"]
[null,null,null,"Categorize_SIF_4_Jan","Categorize SIF # 4 from drop down & identify controls enlisted ",null,null,null,null,null,null,"Number of Leadership Visits for Jan"]
[null,null,null,"Leading_Indic_Visit_Jan","Number of Leadership Visits",null,null,null,null,null,null,"Number of Management Walkthroughs for Jan"]
[null,null,null,"Leading_Indic_Walk_Jan","Number of Management Walkthroughs"]
[]
["EmptyCellsCheckList_Feb",null,null,"HSE_SupplierName","The Supplier Name"]
[null,null,null,"HSE_FormDate","The date of the form"]
[null,null,null,"HSE_SupplierSAPNo","SAP ID",null,null,null,null,"EmptyCellResutlsTable_AllMonths"]
[null,null,null,"Exposure_Values_ManH_Feb","Manhours for Feb"]
[null,null,null,"Lagging_Indic_Total_Feb","Total Recordable Cases / Incidents (TRC / TRI) for Feb"]
[null,null,null,"Lagging_Indic_Fatal_Feb","Number of fatalities for Feb"]
[null,null,null,"Lagging_Indic_LTI_Feb","Number of Lost Time Injuries (LTI) for Feb"]
[null,null,null,"Exposure_Values_SIF_Feb","Number of SIF for Feb"]
[null,null,null,"Categorize_SIF_1_Feb","Categorize SIF # 1 from drop down & identify controls enlisted for Feb"]
[null,null,null,"Categorize_SIF_2_Feb","Categorize SIF # 2 from drop down & identify controls enlisted for Feb"]
[null,null,null,"Categorize_SIF_3_Feb","Categorize SIF # 3 from drop down & identify controls enlisted for Feb"]
[null,null,null,"Categorize_SIF_4_Feb","Categorize SIF # 4 from drop down & identify controls enlisted for Feb"]
[null,null,null,"Leading_Indic_Visit_Feb","Number of Leadership Visits for Feb"]
[null,null,null,"Leading_Indic_Walk_Feb","Number of Management Walkthroughs for Feb"]
[]
["EmptyCellsCheckList_Mar",null,null,"HSE_SupplierName","The Supplier Name"]
[null,null,null,"HSE_FormDate","The date of the form"]
[null,null,null,"HSE_SupplierSAPNo","SAP ID"]
[null,null,null,"Exposure_Values_ManH_Mar","Manhours for Mar"]
[null,null,null,"Lagging_Indic_Total_Mar","Total Recordable Cases / Incidents (TRC / TRI) for Mar"]
[null,null,null,"Lagging_Indic_Fatal_Mar","Number of fatalities for Mar"]
[null,null,null,"Lagging_Indic_LTI_Mar","Number of Lost Time Injuries (LTI) for Mar"]
[null,null,null,"Exposure_Values_SIF_Mar","Number of SIF for Mar"]
[null,null,null,"Categorize_SIF_1_Mar","Categorize SIF # 1 from drop down & identify controls enlisted for Mar"]
[null,null,null,"Categorize_SIF_2_Mar","Categorize SIF # 2 from drop down & identify controls enlisted for Mar"]
[null,null,null,"Categorize_SIF_3_Mar","Categorize SIF # 3 from drop down & identify controls enlisted for Mar"]
[null,null,null,"Categorize_SIF_4_Mar","Categorize SIF # 4 from drop down & identify controls enlisted for Mar"]
[null,null,null,"Leading_Indic_Visit_Mar","Number of Leadership Visits for Mar"]
[null,null,null,"Leading_Indic_Walk_Mar","Number of Management Walkthroughs for Mar"]
[]
["EmptyCellsCheckList_Apr",null,null,"HSE_SupplierName","The Supplier Name"]
[null,null,null,"HSE_FormDate","The date of the form"]
[null,null,null,"HSE_SupplierSAPNo","SAP ID"]
[null,null,null,"Exposure_Values_ManH_Apr","Manhours for Apr"]
[null,null,null,"Lagging_Indic_Total_Apr","Total Recordable Cases / Incidents (TRC / TRI) for Apr"]
[null,null,null,"Lagging_Indic_Fatal_Apr","Number of fatalities for Apr"]
[null,null,null,"Lagging_Indic_LTI_Apr","Number of Lost Time Injuries (LTI) for Apr"]
[null,null,null,"Exposure_Values_SIF_Apr","Number of SIF for Apr"]
[null,null,null,"Categorize_SIF_1_Apr","Categorize SIF # 1 from drop down & identify controls enlisted for Apr"]
[null,null,null,"Categorize_SIF_2_Apr","Categorize SIF # 2 from drop down & identify controls enlisted for Apr"]
[null,null,null,"Categorize_SIF_3_Apr","Categorize SIF # 3 from drop down & identify controls enlisted for Apr"]
[null,null,null,"Categorize_SIF_4_Apr","Categorize SIF # 4 from drop down & identify controls enlisted for Apr"]
[null,null,null,"Leading_Indic_Visit_Apr","Number of Leadership Visits for Apr"]
[null,null,null,"Leading_Indic_Walk_Apr","Number of Management Walkthroughs for Apr"]
[]
["EmptyCellsCheckList_May",null,null,"HSE_SupplierName","The Supplier Name"]
[null,null,null,"HSE_FormDate","The date of the form"]
[null,null,null,"HSE_SupplierSAPNo","SAP ID"]
[null,null,null,"Exposure_Values_ManH_May","Manhours for May"]
[null,null,null,"Lagging_Indic_Total_May","Total Recordable Cases / Incidents (TRC / TRI) for May"]
[null,null,null,"Lagging_Indic_Fatal_May","Number of fatalities for May"]
[null,null,null,"Lagging_Indic_LTI_May","Number of Lost Time Injuries (LTI) for May"]
[null,null,null,"Exposure_Values_SIF_May","Number of SIF for May"]
[null,null,null,"Categorize_SIF_1_May","Categorize SIF # 1 from drop down & identify controls enlisted for May"]
[null,null,null,"Categorize_SIF_2_May","Categorize SIF # 2 from drop down & identify controls enlisted for May"]
[null,null,null,"Categorize_SIF_3_May","Categorize SIF # 3 from drop down & identify controls enlisted for May"]
[null,null,null,"Categorize_SIF_4_May","Categorize SIF # 4 from drop down & identify controls enlisted for May"]
[null,null,null,"Leading_Indic_Visit_May","Number of Leadership Visits for May"]
[null,null,null,"Leading_Indic_Walk_May","Number of Management Walkthroughs for May"]
[]
["EmptyCellsCheckList_Jun",null,null,"HSE_SupplierName","The Supplier Name"]
[null,null,null,"HSE_FormDate","The date of the form"]
[null,null,null,"HSE_SupplierSAPNo","SAP ID"]
[null,null,null,"Exposure_Values_ManH_Jun","Manhours for Jun"]
[null,null,null,"Lagging_Indic_Total_Jun","Total Recordable Cases / Incidents (TRC / TRI) for Jun"]
[null,null,null,"Lagging_Indic_Fatal_Jun","Number of fatalities for Jun"]
[null,null,null,"Lagging_Indic_LTI_Jun","Number of Lost Time Injuries (LTI) for Jun"]
[null,null,null,"Exposure_Values_SIF_Jun","Number of SIF for Jun"]
[null,null,null,"Categorize_SIF_1_Jun","Categorize SIF # 1 from drop down & identify controls enlisted for Jun"]
[null,null,null,"Categorize_SIF_2_Jun","Categorize SIF # 2 from drop down & identify controls enlisted for Jun"]
[null,null,null,"Categorize_SIF_3_Jun","Categorize SIF # 3 from drop down & identify controls enlisted for Jun"]
[null,null,null,"Categorize_SIF_4_Jun","Categorize SIF # 4 from drop down & identify controls enlisted for Jun"]
[null,null,null,"Leading_Indic_Visit_Jun","Number of Leadership Visits for Jun"]
[null,null,null,"Leading_Indic_Walk_Jun","Number of Management Walkthroughs for Jun"]
[]
["EmptyCellsCheckList_Jul",null,null,"HSE_SupplierName","The Supplier Name"]
[null,null,null,"HSE_FormDate","The date of the form"]
[null,null,null,"HSE_SupplierSAPNo","SAP ID"]
[null,null,null,"Exposure_Values_ManH_Jul","Manhours for Jul"]
[null,null,null,"Lagging_Indic_Total_Jul","Total Recordable Cases / Incidents (TRC / TRI) for Jul"]
[null,null,null,"Lagging_Indic_Fatal_Jul","Number of fatalities for Jul"]
[null,null,null,"Lagging_Indic_LTI_Jul","Number of Lost Time Injuries (LTI) for Jul"]
[null,null,null,"Exposure_Values_SIF_Jul","Number of SIF for Jul"]
[null,null,null,"Categorize_SIF_1_Jul","Categorize SIF # 1 from drop down & identify controls enlisted for Jul"]
[null,null,null,"Categorize_SIF_2_Jul","Categorize SIF # 2 from drop down & identify controls enlisted for Jul"]
[null,null,null,"Categorize_SIF_3_Jul","Categorize SIF # 3 from drop down & identify controls enlisted for Jul"]
[null,null,null,"Categorize_SIF_4_Jul","Categorize SIF # 4 from drop down & identify controls enlisted for Jul"]
[null,null,null,"Leading_Indic_Visit_Jul","Number of Leadership Visits for Jul"]
[null,null,null,"Leading_Indic_Walk_Jul","Number of Management Walkthroughs for Jul"]
[]
["EmptyCellsCheckList_Aug",null,null,"HSE_SupplierName","The Supplier Name"]
[null,null,null,"HSE_FormDate","The date of the form"]
[null,null,null,"HSE_SupplierSAPNo","SAP ID"]
[null,null,null,"Exposure_Values_ManH_Aug","Manhours for Aug"]
[null,null,null,"Lagging_Indic_Total_Aug","Total Recordable Cases / Incidents (TRC / TRI) for Aug"]
[null,null,null,"Lagging_Indic_Fatal_Aug","Number of fatalities for Aug"]
[null,null,null,"Lagging_Indic_LTI_Aug","Number of Lost Time Injuries (LTI) for Aug"]
[null,null,null,"Exposure_Values_SIF_Aug","Number of SIF for Aug"]
[null,null,null,"Categorize_SIF_1_Aug","Categorize SIF # 1 from drop down & identify controls enlisted for Aug"]
[null,null,null,"Categorize_SIF_2_Aug","Categorize SIF # 2 from drop down & identify controls enlisted for Aug"]
[null,null,null,"Categorize_SIF_3_Aug","Categorize SIF # 3 from drop down & identify controls enlisted for Aug"]
[null,null,null,"Categorize_SIF_4_Aug","Categorize SIF # 4 from drop down & identify controls enlisted for Aug"]
[null,null,null,"Leading_Indic_Visit_Aug","Number of Leadership Visits for Aug"]
[null,null,null,"Leading_Indic_Walk_Aug","Number of Management Walkthroughs for Aug"]
[]
["EmptyCellsCheckList_Sep",null,null,"HSE_SupplierName","The Supplier Name"]
[null,null,null,"HSE_FormDate","The date of the form"]
[null,null,null,"HSE_SupplierSAPNo","SAP ID"]
[null,null,null,"Exposure_Values_ManH_Sep","Manhours for Sep"]
[null,null,null,"Lagging_Indic_Total_Sep","Total Recordable Cases / Incidents (TRC / TRI) for Sep"]
[null,null,null,"Lagging_Indic_Fatal_Sep","Number of fatalities for Sep"]
[null,null,null,"Lagging_Indic_LTI_Sep","Number of Lost Time Injuries (LTI) for Sep"]
[null,null,null,"Exposure_Values_SIF_Sep","Number of SIF for Sep"]
[null,null,null,"Categorize_SIF_1_Sep","Categorize SIF # 1 from drop down & identify controls enlisted for Sep"]
[null,null,null,"Categorize_SIF_2_Sep","Categorize SIF # 2 from drop down & identify controls enlisted for Sep"]
[null,null,null,"Categorize_SIF_3_Sep","Categorize SIF # 3 from drop down & identify controls enlisted for Sep"]
[null,null,null,"Categorize_SIF_4_Sep","Categorize SIF # 4 from drop down & identify controls enlisted for Sep"]
[null,null,null,"Leading_Indic_Visit_Sep","Number of Leadership Visits for Sep"]
[null,null,null,"Leading_Indic_Walk_Sep","Number of Management Walkthroughs for Sep"]
[]
["EmptyCellsCheckList_Oct",null,null,"HSE_SupplierName","The Supplier Name"]
[null,null,null,"HSE_FormDate","The date of the form"]
[null,null,null,"HSE_SupplierSAPNo","SAP ID"]
[null,null,null,"Exposure_Values_ManH_Oct","Manhours for Oct"]
[null,null,null,"Lagging_Indic_Total_Oct","Total Recordable Cases / Incidents (TRC / TRI) for Oct"]
[null,null,null,"Lagging_Indic_Fatal_Oct","Number of fatalities for Oct"]
[null,null,null,"Lagging_Indic_LTI_Oct","Number of Lost Time Injuries (LTI) for Oct"]
[null,null,null,"Exposure_Values_SIF_Oct","Number of SIF for Oct"]
[null,null,null,"Categorize_SIF_1_Oct","Categorize SIF # 1 from drop down & identify controls enlisted for Oct"]
[null,null,null,"Categorize_SIF_2_Oct","Categorize SIF # 2 from drop down & identify controls enlisted for Oct"]
[null,null,null,"Categorize_SIF_3_Oct","Categorize SIF # 3 from drop down & identify controls enlisted for Oct"]
[null,null,null,"Categorize_SIF_4_Oct","Categorize SIF # 4 from drop down & identify controls enlisted for Oct"]
[null,null,null,"Leading_Indic_Visit_Oct","Number of Leadership Visits for Oct"]
[null,null,null,"Leading_Indic_Walk_Oct","Number of Management Walkthroughs for Oct"]
[]
["EmptyCellsCheckList_Nov",null,null,"HSE_SupplierName","The Supplier Name"]
[null,null,null,"HSE_FormDate","The date of the form"]
[null,null,null,"HSE_SupplierSAPNo","SAP ID"]
[null,null,null,"Exposure_Values_ManH_Nov","Manhours for Nov"]
[null,null,null,"Lagging_Indic_Total_Nov","Total Recordable Cases / Incidents (TRC / TRI) for Nov"]
[null,null,null,"Lagging_Indic_Fatal_Nov","Number of fatalities for Nov"]
[null,null,null,"Lagging_Indic_LTI_Nov","Number of Lost Time Injuries (LTI) for Nov"]
[null,null,null,"Exposure_Values_SIF_Nov","Number of SIF for Nov"]
[null,null,null,"Categorize_SIF_1_Nov","Categorize SIF # 1 from drop down & identify controls enlisted for Nov"]
[null,null,null,"Categorize_SIF_2_Nov","Categorize SIF # 2 from drop down & identify controls enlisted for Nov"]
[null,null,null,"Categorize_SIF_3_Nov","Categorize SIF # 3 from drop down & identify controls enlisted for Nov"]
[null,null,null,"Categorize_SIF_4_Nov","Categorize SIF # 4 from drop down & identify controls enlisted for Nov"]
[null,null,null,"Leading_Indic_Visit_Nov","Number of Leadership Visits for Nov"]
[null,null,null,"Leading_Indic_Walk_Nov","Number of Management Walkthroughs for Nov"]
[]
["EmptyCellsCheckList_Dec",null,null,"HSE_SupplierName","The Supplier Name"]
[null,null,null,"HSE_FormDate","The date of the form"]
[null,null,null,"HSE_SupplierSAPNo","SAP ID"]
[null,null,null,"Exposure_Values_ManH_Dec","Manhours for Dec"]
[null,null,null,"Lagging_Indic_Total_Dec","Total Recordable Cases / Incidents (TRC / TRI) for Dec"]
[null,null,null,"Lagging_Indic_Fatal_Dec","Number of fatalities for Dec"]
[null,null,null,"Lagging_Indic_LTI_Dec","Number of Lost Time Injuries (LTI) for Dec"]
[null,null,null,"Exposure_Values_SIF_Dec","Number of SIF for Dec"]
[null,null,null,"Categorize_SIF_1_Dec","Categorize SIF # 1 from drop down & identify controls enlisted for Dec"]
[null,null,null,"Categorize_SIF_2_Dec","Categorize SIF # 2 from drop down & identify controls enlisted for Dec"]
[null,null,null,"Categorize_SIF_3_Dec","Categorize SIF # 3 from drop down & identify controls enlisted for Dec"]
[null,null,null,"Categorize_SIF_4_Dec","Categorize SIF # 4 from drop down & identify controls enlisted for Dec"]
[null,null,null,"Leading_Indic_Visit_Dec","Number of Leadership Visits for Dec"]
[null,null,null,"Leading_Indic_Walk_Dec","Number of Management Walkthroughs for Dec"]
[]
[]
[]
[]
["Months Table",null,null,"AllMonthsTable","AllMonthsTable"]
["AllMonthsTable",null,null,"Jan",null,"SelectedMonthsTable"]
[]
[]
[]
["Naming Conventions"]
[null,null,"Name",{"$f":"SUBSTITUTE(HSE_SupplierName,\" \",\"\")","v":""}]
[null,null,"SAP no.",{"$f":"HSE_SupplierSAPNo","v":0}]
[null,null,"Date",{"$f":"HSE_FormDate","v":"2026-02-25"}]
[null,null,"Month-num",{"$f":"MONTH(HSE_FormDate)","v":2}]
[null,null,"Month-name",{"$f":"TEXT(D256,\"mmm\")","v":"Feb"}]
[null,null,"Year",{"$f":"YEAR(HSE_FormDate)","v":2026}]
[null,null,"Day",{"$f":"DAY(HSE_FormDate)","v":25}]
[]
["Reporitng Date from drop down list",null,null,{"$f":"Reporting_date","v":"2026-01-01"}]
[null,null,"Month-name",{"$f":"TEXT(D262,\"mmm\")","v":"Jan"}]
[null,null,"Year",{"$f":"YEAR(Reporting_date)","v":2026}]
[]
[]
["File name 1",null,null,{"$f":"CONCATENATE(D254,\"_\",D257,\"-\",D259)","v":"_2-2026"}]
["File name x",null,null,{"$f":"CONCATENATE(D254,\"_\",D260,\"-\",D257,\"-\",D259)","v":"_25-2-2026"}]
["File name 2",null,null,{"$f":"CONCATENATE(D254,\"_\",D260,\"-\",D258,\"-\",D259)","v":"_25-Feb-2026"}]
["File name 3",null,null,{"$f":"CONCATENATE(D254,\"_\",D255,\"_\",D260,D258,D259)","v":"_0_25Feb2026"}]
["File name 4",null,null,{"$f":"CONCATENATE(D254,\"_\",D263,\"-\",D264)","v":"_Jan-2026"}]
[]
[]
[]
[]
[]
["HSE_LockUnlockCellsList",null,null,"Selected Cell names","Cell tittle"]
[null,null,null,"Exposure_Values_ManH_Jan","Manhours for Jan"]
["HSE_LockUnlockCellsList",null,null,"Lagging_Indic_Total_Jan","Total Recordable Cases / Incidents (TRC / TRI) for Jan"]
[null,null,null,"Lagging_Indic_Fatal_Jan","Number of fatalities for Jan"]
[null,null,null,"Lagging_Indic_LTI_Jan","Number of Lost Time Injuries (LTI) for Jan"]
[null,null,null,"Exposure_Values_SIF_Jan","Number of SIF for Jan"]
[null,null,null,"Categorize_SIF_1_Jan","Categorize SIF # 1 from drop down & identify controls enlisted for Jan"]
[null,null,null,"Categorize_SIF_2_Jan","Categorize SIF # 2 from drop down & identify controls enlisted for Jan"]
[null,null,null,"Categorize_SIF_3_Jan","Categorize SIF # 3 from drop down & identify controls enlisted for Jan"]
[null,null,null,"Categorize_SIF_4_Jan","Categorize SIF # 4 from drop down & identify controls enlisted for Jan"]
[null,null,null,"Leading_Indic_Visit_Jan","Number of Leadership Visits for Jan"]
[null,null,null,"Leading_Indic_Walk_Jan","Number of Management Walkthroughs for Jan"]
[]
[]
[]
[]
["HSE_xxxxx",null,null,"Selected Cell names","Cell tittle"]
["CellsLockerCheckList_Jan",null,null,"Exposure_Values_ManH_Jan","Manhours for Jan"]
[null,null,null,"Lagging_Indic_Total_Jan","Total Recordable Cases / Incidents (TRC / TRI) for Jan"]
[null,null,null,"Lagging_Indic_Fatal_Jan","Number of fatalities for Jan"]
[null,null,null,"Lagging_Indic_LTI_Jan","Number of Lost Time Injuries (LTI) for Jan"]
[null,null,null,"Exposure_Values_SIF_Jan","Number of SIF for Jan"]
[null,null,null,"Categorize_SIF_1_Jan","Categorize SIF # 1 from drop down & identify controls enlisted for Jan"]
[null,null,null,"Categorize_SIF_2_Jan","Categorize SIF # 2 from drop down & identify controls enlisted for Jan"]
[null,null,null,"Categorize_SIF_3_Jan","Categorize SIF # 3 from drop down & identify controls enlisted for Jan"]
[null,null,null,"Categorize_SIF_4_Jan","Categorize SIF # 4 from drop down & identify controls enlisted for Jan"]
[null,null,null,"Leading_Indic_Visit_Jan","Number of Leadership Visits for Jan"]
[null,null,null,"Leading_Indic_Walk_Jan","Number of Management Walkthroughs for Jan"]
[]
["CellsLockerCheckList_Feb",null,null,"Exposure_Values_ManH_Feb","Manhours for Feb"]
[null,null,null,"Lagging_Indic_Total_Feb","Total Recordable Cases / Incidents (TRC / TRI) for Feb"]
[null,null,null,"Lagging_Indic_Fatal_Feb","Number of fatalities for Feb"]
[null,null,null,"Lagging_Indic_LTI_Feb","Number of Lost Time Injuries (LTI) for Feb"]
[null,null,null,"Exposure_Values_SIF_Feb","Number of SIF for Feb"]
[null,null,null,"Categorize_SIF_1_Feb","Categorize SIF # 1 from drop down & identify controls enlisted for Feb"]
[null,null,null,"Categorize_SIF_2_Feb","Categorize SIF # 2 from drop down & identify controls enlisted for Feb"]
[null,null,null,"Categorize_SIF_3_Feb","Categorize SIF # 3 from drop down & identify controls enlisted for Feb"]
[null,null,null,"Categorize_SIF_4_Feb","Categorize SIF # 4 from drop down & identify controls enlisted for Feb"]
[null,null,null,"Leading_Indic_Visit_Feb","Number of Leadership Visits for Feb"]
[null,null,null,"Leading_Indic_Walk_Feb","Number of Management Walkthroughs for Feb"]
[]
["CellsLockerCheckList_Mar",null,null,"Exposure_Values_ManH_Mar","Manhours for Mar"]
[null,null,null,"Lagging_Indic_Total_Mar","Total Recordable Cases / Incidents (TRC / TRI) for Mar"]
[null,null,null,"Lagging_Indic_Fatal_Mar","Number of fatalities for Mar"]
[null,null,null,"Lagging_Indic_LTI_Mar","Number of Lost Time Injuries (LTI) for Mar"]
[null,null,null,"Exposure_Values_SIF_Mar","Number of SIF for Mar"]
[null,null,null,"Categorize_SIF_1_Mar","Categorize SIF # 1 from drop down & identify controls enlisted for Mar"]
[null,null,null,"Categorize_SIF_2_Mar","Categorize SIF # 2 from drop down & identify controls enlisted for Mar"]
[null,null,null,"Categorize_SIF_3_Mar","Categorize SIF # 3 from drop down & identify controls enlisted for Mar"]
[null,null,null,"Categorize_SIF_4_Mar","Categorize SIF # 4 from drop down & identify controls enlisted for Mar"]
[null,null,null,"Leading_Indic_Visit_Mar","Number of Leadership Visits for Mar"]
[null,null,null,"Leading_Indic_Walk_Mar","Number of Management Walkthroughs for Mar"]
[]
["CellsLockerCheckList_Apr",null,null,"Exposure_Values_ManH_Apr","Manhours for Apr"]
[null,null,null,"Lagging_Indic_Total_Apr","Total Recordable Cases / Incidents (TRC / TRI) for Apr"]
[null,null,null,"Lagging_Indic_Fatal_Apr","Number of fatalities for Apr"]
[null,null,null,"Lagging_Indic_LTI_Apr","Number of Lost Time Injuries (LTI) for Apr"]
[null,null,null,"Exposure_Values_SIF_Apr","Number of SIF for Apr"]
[null,null,null,"Categorize_SIF_1_Apr","Categorize SIF # 1 from drop down & identify controls enlisted for Apr"]
[null,null,null,"Categorize_SIF_2_Apr","Categorize SIF # 2 from drop down & identify controls enlisted for Apr"]
[null,null,null,"Categorize_SIF_3_Apr","Categorize SIF # 3 from drop down & identify controls enlisted for Apr"]
[null,null,null,"Categorize_SIF_4_Apr","Categorize SIF # 4 from drop down & identify controls enlisted for Apr"]
[null,null,null,"Leading_Indic_Visit_Apr","Number of Leadership Visits for Apr"]
[null,null,null,"Leading_Indic_Walk_Apr","Number of Management Walkthroughs for Apr"]
[]
["CellsLockerCheckList_May",null,null,"Exposure_Values_ManH_May","Manhours for May"]
[null,null,null,"Lagging_Indic_Total_May","Total Recordable Cases / Incidents (TRC / TRI) for May"]
[null,null,null,"Lagging_Indic_Fatal_May","Number of fatalities for May"]
[null,null,null,"Lagging_Indic_LTI_May","Number of Lost Time Injuries (LTI) for May"]
[null,null,null,"Exposure_Values_SIF_May","Number of SIF for May"]
[null,null,null,"Categorize_SIF_1_May","Categorize SIF # 1 from drop down & identify controls enlisted for May"]
[null,null,null,"Categorize_SIF_2_May","Categorize SIF # 2 from drop down & identify controls enlisted for May"]
[null,null,null,"Categorize_SIF_3_May","Categorize SIF # 3 from drop down & identify controls enlisted for May"]
[null,null,null,"Categorize_SIF_4_May","Categorize SIF # 4 from drop down & identify controls enlisted for May"]
[null,null,null,"Leading_Indic_Visit_May","Number of Leadership Visits for May"]
[null,null,null,"Leading_Indic_Walk_May","Number of Management Walkthroughs for May"]
[]
["CellsLockerCheckList_Jun",null,null,"Exposure_Values_ManH_Jun","Manhours for Jun"]
[null,null,null,"Lagging_Indic_Total_Jun","Total Recordable Cases / Incidents (TRC / TRI) for Jun"]
[null,null,null,"Lagging_Indic_Fatal_Jun","Number of fatalities for Jun"]
[null,null,null,"Lagging_Indic_LTI_Jun","Number of Lost Time Injuries (LTI) for Jun"]
[null,null,null,"Exposure_Values_SIF_Jun","Number of SIF for Jun"]
[null,null,null,"Categorize_SIF_1_Jun","Categorize SIF # 1 from drop down & identify controls enlisted for Jun"]
[null,null,null,"Categorize_SIF_2_Jun","Categorize SIF # 2 from drop down & identify controls enlisted for Jun"]
[null,null,null,"Categorize_SIF_3_Jun","Categorize SIF # 3 from drop down & identify controls enlisted for Jun"]
[null,null,null,"Categorize_SIF_4_Jun","Categorize SIF # 4 from drop down & identify controls enlisted for Jun"]
[null,null,null,"Leading_Indic_Visit_Jun","Number of Leadership Visits for Jun"]
[null,null,null,"Leading_Indic_Walk_Jun","Number of Management Walkthroughs for Jun"]
[]
["CellsLockerCheckList_Jul",null,null,"Exposure_Values_ManH_Jul","Manhours for Jul"]
[null,null,null,"Lagging_Indic_Total_Jul","Total Recordable Cases / Incidents (TRC / TRI) for Jul"]
[null,null,null,"Lagging_Indic_Fatal_Jul","Number of fatalities for Jul"]
[null,null,null,"Lagging_Indic_LTI_Jul","Number of Lost Time Injuries (LTI) for Jul"]
[null,null,null,"Exposure_Values_SIF_Jul","Number of SIF for Jul"]
[null,null,null,"Categorize_SIF_1_Jul","Categorize SIF # 1 from drop down & identify controls enlisted for Jul"]
[null,null,null,"Categorize_SIF_2_Jul","Categorize SIF # 2 from drop down & identify controls enlisted for Jul"]
[null,null,null,"Categorize_SIF_3_Jul","Categorize SIF # 3 from drop down & identify controls enlisted for Jul"]
[null,null,null,"Categorize_SIF_4_Jul","Categorize SIF # 4 from drop down & identify controls enlisted for Jul"]
[null,null,null,"Leading_Indic_Visit_Jul","Number of Leadership Visits for Jul"]
[null,null,null,"Leading_Indic_Walk_Jul","Number of Management Walkthroughs for Jul"]
[]
["CellsLockerCheckList_Aug",null,null,"Exposure_Values_ManH_Aug","Manhours for Aug"]
[null,null,null,"Lagging_Indic_Total_Aug","Total Recordable Cases / Incidents (TRC / TRI) for Aug"]
[null,null,null,"Lagging_Indic_Fatal_Aug","Number of fatalities for Aug"]
[null,null,null,"Lagging_Indic_LTI_Aug","Number of Lost Time Injuries (LTI) for Aug"]
[null,null,null,"Exposure_Values_SIF_Aug","Number of SIF for Aug"]
[null,null,null,"Categorize_SIF_1_Aug","Categorize SIF # 1 from drop down & identify controls enlisted for Aug"]
[null,null,null,"Categorize_SIF_2_Aug","Categorize SIF # 2 from drop down & identify controls enlisted for Aug"]
[null,null,null,"Categorize_SIF_3_Aug","Categorize SIF # 3 from drop down & identify controls enlisted for Aug"]
[null,null,null,"Categorize_SIF_4_Aug","Categorize SIF # 4 from drop down & identify controls enlisted for Aug"]
[null,null,null,"Leading_Indic_Visit_Aug","Number of Leadership Visits for Aug"]
[null,null,null,"Leading_Indic_Walk_Aug","Number of Management Walkthroughs for Aug"]
[]
["CellsLockerCheckList_Sep",null,null,"Exposure_Values_ManH_Sep","Manhours for Sep"]
[null,null,null,"Lagging_Indic_Total_Sep","Total Recordable Cases / Incidents (TRC / TRI) for Sep"]
[null,null,null,"Lagging_Indic_Fatal_Sep","Number of fatalities for Sep"]
[null,null,null,"Lagging_Indic_LTI_Sep","Number of Lost Time Injuries (LTI) for Sep"]
[null,null,null,"Exposure_Values_SIF_Sep","Number of SIF for Sep"]
[null,null,null,"Categorize_SIF_1_Sep","Categorize SIF # 1 from drop down & identify controls enlisted for Sep"]
[null,null,null,"Categorize_SIF_2_Sep","Categorize SIF # 2 from drop down & identify controls enlisted for Sep"]
[null,null,null,"Categorize_SIF_3_Sep","Categorize SIF # 3 from drop down & identify controls enlisted for Sep"]
[null,null,null,"Categorize_SIF_4_Sep","Categorize SIF # 4 from drop down & identify controls enlisted for Sep"]
[null,null,null,"Leading_Indic_Visit_Sep","Number of Leadership Visits for Sep"]
[null,null,null,"Leading_Indic_Walk_Sep","Number of Management Walkthroughs for Sep"]
[]
["CellsLockerCheckList_Oct",null,null,"Exposure_Values_ManH_Oct","Manhours for Oct"]
[null,null,null,"Lagging_Indic_Total_Oct","Total Recordable Cases / Incidents (TRC / TRI) for Oct"]
[null,null,null,"Lagging_Indic_Fatal_Oct","Number of fatalities for Oct"]
[null,null,null,"Lagging_Indic_LTI_Oct","Number of Lost Time Injuries (LTI) for Oct"]
[null,null,null,"Exposure_Values_SIF_Oct","Number of SIF for Oct"]
[null,null,null,"Categorize_SIF_1_Oct","Categorize SIF # 1 from drop down & identify controls enlisted for Oct"]
[null,null,null,"Categorize_SIF_2_Oct","Categorize SIF # 2 from drop down & identify controls enlisted for Oct"]
[null,null,null,"Categorize_SIF_3_Oct","Categorize SIF # 3 from drop down & identify controls enlisted for Oct"]
[null,null,null,"Categorize_SIF_4_Oct","Categorize SIF # 4 from drop down & identify controls enlisted for Oct"]
[null,null,null,"Leading_Indic_Visit_Oct","Number of Leadership Visits for Oct"]
[null,null,null,"Leading_Indic_Walk_Oct","Number of Management Walkthroughs for Oct"]
[]
["CellsLockerCheckList_Nov",null,null,"Exposure_Values_ManH_Nov","Manhours for Nov"]
[null,null,null,"Lagging_Indic_Total_Nov","Total Recordable Cases / Incidents (TRC / TRI) for Nov"]
[null,null,null,"Lagging_Indic_Fatal_Nov","Number of fatalities for Nov"]
[null,null,null,"Lagging_Indic_LTI_Nov","Number of Lost Time Injuries (LTI) for Nov"]
[null,null,null,"Exposure_Values_SIF_Nov","Number of SIF for Nov"]
[null,null,null,"Categorize_SIF_1_Nov","Categorize SIF # 1 from drop down & identify controls enlisted for Nov"]
[null,null,null,"Categorize_SIF_2_Nov","Categorize SIF # 2 from drop down & identify controls enlisted for Nov"]
[null,null,null,"Categorize_SIF_3_Nov","Categorize SIF # 3 from drop down & identify controls enlisted for Nov"]
[null,null,null,"Categorize_SIF_4_Nov","Categorize SIF # 4 from drop down & identify controls enlisted for Nov"]
[null,null,null,"Leading_Indic_Visit_Nov","Number of Leadership Visits for Nov"]
[null,null,null,"Leading_Indic_Walk_Nov","Number of Management Walkthroughs for Nov"]
[]
["CellsLockerCheckList_Dec",null,null,"Exposure_Values_ManH_Dec","Manhours for Dec"]
[null,null,null,"Lagging_Indic_Total_Dec","Total Recordable Cases / Incidents (TRC / TRI) for Dec"]
[null,null,null,"Lagging_Indic_Fatal_Dec","Number of fatalities for Dec"]
[null,null,null,"Lagging_Indic_LTI_Dec","Number of Lost Time Injuries (LTI) for Dec"]
[null,null,null,"Exposure_Values_SIF_Dec","Number of SIF for Dec"]
[null,null,null,"Categorize_SIF_1_Dec","Categorize SIF # 1 from drop down & identify controls enlisted for Dec"]
[null,null,null,"Categorize_SIF_2_Dec","Categorize SIF # 2 from drop down & identify controls enlisted for Dec"]
[null,null,null,"Categorize_SIF_3_Dec","Categorize SIF # 3 from drop down & identify controls enlisted for Dec"]
[null,null,null,"Categorize_SIF_4_Dec","Categorize SIF # 4 from drop down & identify controls enlisted for Dec"]
[null,null,null,"Leading_Indic_Visit_Dec","Number of Leadership Visits for Dec"]
[null,null,null,"Leading_Indic_Walk_Dec","Number of Management Walkthroughs for Dec"]

{"sheet":"User preferences","index":2,"n_rows":123,"n_cols":13,"rows_kept":123,"cut":false,"hidden":true,"merged":[[8,0,8,2],[116,0,116,2],[98,0,98,2],[81,0,81,2],[71,0,71,2],[33,0,33,2],[19,0,19,2],[21,0,21,2],[11,3,11,4],[11,0,11,2],[0,0,1,2],[5,3,5,4],[6,3,6,4],[7,3,7,4],[8,3,8,4],[3,0,3,2],[5,0,5,2],[6,0,6,2],[7,0,7,2],[9,3,9,4],[10,3,10,4],[10,0,10,2],[9,0,9,2],[4,0,4,2]]}
["Created by Layth Alattar\n(layth.alattar@technipfmc.com)"]
[]
[]
["Email settings"]
["Cell name",null,null,"Value of the cell",null,"Cell tittle"]
["Email_To",null,null,"Supplier.HSE@technipfmc.com"]
["Email_CC"]
["Email_BCC"]
["Email_Subject",null,null,"SUPPLIER_HSE_REPORT"]
["Email_Body",null,null,{"$f":"CONCATENATE(    \"Please do not change the subject of the email.\", \"    \",\" HSE report from supplier\",\" \", HSE_SupplierName,\" for date\",\" \",HSE_Month_Name, \" \",HSE_Year4Num)","v":"Please do not change the subject of the email.     HSE report from supplier  for date Feb 2026"}]
["Attached_FileName_1",null,null,{"$f":"FinalFileName","v":"_Jan-2026"}]
[]
[]
[]
[]
[]
[]
[]
[]
["Drop-down lists"]
[]
["HSE_DropDownList_1",null,null,"Selection options","Cell range"]
[null,null,null,"Material Handling","text"]
[null,null,null,"Energy Release","text"]
[null,null,null,"Slip/Fall","text"]
[null,null,null,"Environmental Hazard","text"]
[null,null,null,"To be determined","text"]
[null,null,null,"Others","text"]
[null,null,null,null,"text"]
[]
[]
[]
[]
["HSE_DropDownList_2",null,null,"Selection options","Cell range"]
[null,null,null,null,"Number"]
[null,null,null,0]
[null,null,null,1,"Number"]
[null,null,null,2,"Number"]
[null,null,null,3,"Number"]
[null,null,null,4,"Number"]
[null,null,null,5,"Number"]
[null,null,null,6]
[null,null,null,7]
[null,null,null,8]
[null,null,null,9]
[null,null,null,10]
[null,null,null,11]
[null,null,null,12]
[null,null,null,13]
[null,null,null,14]
[null,null,null,15]
[null,null,null,16]
[null,null,null,17]
[null,null,null,18]
[null,null,null,19]
[null,null,null,20]
[null,null,null,21]
[null,null,null,22]
[null,null,null,23]
[null,null,null,24]
[null,null,null,25]
[null,null,null,26]
[null,null,null,27]
[null,null,null,28]
[null,null,null,29]
[null,null,null,30]
[null,null,null,31]
[]
[]
[]
[]
["HSE_DropDownList_3",null,null,"Selection options","Cell range"]
[null,null,null,10000,"Number"]
[null,null,null,20000,"Number"]
[null,null,null,30000,"Number"]
[null,null,null,40000,"Number"]
[null,null,null,50000,"Number"]
[null,null,null,60000,"Number"]
[]
[]
[]
["HSE_DropDownList_4",null,null,"Selection options","Cell range"]
[null,null,null,"Jan 2022","Text"]
[null,null,null,"Feb 2022","Text"]
[null,null,null,"Mar 2022","Text"]
[null,null,null,"Apr 2022","Text"]
[null,null,null,"May 2022","Text"]
[null,null,null,"Jun 2022","Text"]
[null,null,null,"Jul 2022","Text"]
[null,null,null,"Aug 2022","Text"]
[null,null,null,"Sep 2022","Text"]
[null,null,null,"Oct 2022","Text"]
[null,null,null,"Nov 2022","Text"]
[null,null,null,"Dec 2022","Text"]
[]
[]
[]
[]
["HSE_DropDownList_5",null,null,"Selection options",null,null,null,null,null,null,"Defualt Month","Months Diff","Month diff (Integer)"]
[null,null,null,{"$f":"IF(M100>=0,K100,\"\")","v":"2026-01-01"},null,null,null,null,null,null,"2026-01-01",{"$f":"DATEDIF(K100,G110,\"m\")","v":1},{"$f":"IFERROR(DATEDIF(K100,G110,\"m\"), -1)","v":1}]
[null,null,null,{"$f":"IF(M101>=0,K101,\"\")","v":"2026-02-01"},null,null,null,null,null,null,"2026-02-01",0,0]
[null,null,null,"2026-03-01",null,null,null,null,null,null,"2026-03-01",0,0]
[null,null,null,"2026-04-01",null,null,null,null,null,null,"2026-04-01",0,0]
[null,null,null,"2026-05-01",null,null,null,null,null,null,"2026-05-01",0,0]
[null,null,null,"2026-06-01",null,null,null,null,null,null,"2026-06-01",0,0]
[null,null,null,"2026-07-01",null,null,null,null,null,null,"2026-07-01",0,0]
[null,null,null,"2026-08-01",null,"Date Diff",5,null,null,null,"2026-08-01",0,0]
[null,null,null,"2026-09-01",null,"Start date","2023-01-01",null,null,null,"2026-09-01",0,0]
[null,null,null,"2026-10-01",null,"Current date",{"$f":"TODAY()","v":"2026-02-25"},null,null,null,"2026-10-01",0,0]
[null,null,null,"2026-11-01",null,null,{"$f":"G109","v":"2026-02-25"},null,null,null,"2026-11-01",0,0]
[null,null,null,"2026-12-01",null,null,null,null,null,null,"2026-12-01",0,0]
[]
[]
[]
[]
[]
["HSE_DropDownList_6",null,null,"Selection options","Cell range"]
[null,null,null,"0 – N/A","text"]
[null,null,null,"1 – PPE","text"]
[null,null,null,"2 – Administrative, Organizational","text"]
[null,null,null,"3 –  Engineering Control","text"]
[null,null,null,"4 –  Substitute","text"]
[null,null,null,"5 – Eliminate","text"]

{"sheet":"Suppliers List","index":3,"n_rows":0,"n_cols":0,"rows_kept":0,"cut":false,"hidden":true,"merged":[]}